bitfinex-derivatives/quotes_ETHF0:USTF0_20250612
["timestamp","ask_amount","ask_price","bid_price","bid_amount"]
[1749717697199,0.72632,2753.1,2753.0,21.446]
[1749717697399,0.72637,2753.0,2752.7,3.8119]
[1749717697601,0.72637,2753.0,2752.9,0.72637]
[1749717697801,0.5966,2753.4,2752.8,21.446]
[1749717698102,0.72627,2753.3,2753.2,0.72627]
[1749717698296,0.72627,2753.3,2753.2,5.21527]
[1749717698698,0.5966,2753.4,2753.3,0.72626]
[1749717698900,0.5966,2753.4,2753.3,17.68126]
[1749717700302,0.5966,2753.4,2753.0,3.8437]
[1749717700303,0.72626,2753.3,2753.0,3.8437]
[1749717700609,1.32284,2753.4,2753.3,21.442]
[1749717700803,2.61464,2753.4,2753.3,21.442]
[1749717700998,1.32284,2753.4,2753.3,21.442]
[1749717701201,0.5966,2753.4,2753.1,0.7263]
[1749717701400,0.72626,2753.3,2753.2,21.441]
[1749717702003,0.72626,2753.3,2753.2,22.16729]
[1749717702709,0.72626,2753.3,2753.2,21.441]
[1749717703306,0.72632,2753.1,2753.0,1.36223]
[1749717703605,3.2078,2753.1,2752.8,4.487]
[1749717703913,0.72645,2752.6,2752.5,16.95944999]
[1749717704213,3.93425,2752.6,2752.5,0.00544999]
[1749717704412,3.93425,2752.6,2752.5,16.95944999]
[1749717705306,8.93425,2752.6,2752.5,0.00544999]
[1749717705514,0.72658,2752.1,2752.0,21.969]
[1749717705707,0.72658,2752.1,2752.0,43.409]
[1749717706105,0.72658,2752.1,2752.0,4.487]
[1749717706511,3.17428,2752.1,2752.0,4.487]
[1749717708013,1.2465,2752.1,2752.0,4.487]
[1749717708417,1.97308,2752.1,2752.0,4.487]
[1749717708620,1.97308,2752.1,2752.0,21.442]
[1749717709511,3.24538,2752.1,2752.0,21.442]
[1749717710313,0.72663,2751.9,2751.8,0.00544999]
[1749717710515,0.72663,2751.9,2751.8,21.44944999]
[1749717711318,0.72663,2751.9,2751.8,4.49344999]
[1749717711723,0.72663,2751.9,2751.8,21.44944999]
[1749717711915,0.72663,2751.9,2751.8,0.00544999]
[1749717712116,3.93443,2751.9,2751.8,0.00544999]
[1749717712323,3.93443,2751.9,2751.4,4.488]
[1749717712324,0.72674,2751.5,2751.4,4.488]
[1749717712715,0.72679,2751.3,2751.2,16.956]
[1749717714422,0.72682,2751.2,2751.1,4.489]
[1749717716524,3.8134,2751.3,2751.2,0.72682]
[1749717716822,3.2078,2751.8,2751.1,7.6968]
[1749717717028,3.2078,2751.8,2751.5,0.72673]
[1749717717327,0.72677,2751.4,2751.3,0.72678]
[1749717717524,0.72677,2751.4,2751.3,22.17578]
[1749717717827,0.6359,2751.7,2751.4,0.72677]
[1749717718022,3.2078,2751.8,2751.3,22.7359]
[1749717718228,0.72671,2751.7,2751.3,22.7359]
[1749717718429,3.2078,2751.8,2751.7,0.72669]
[1749717718618,0.6374,2752.0,2751.7,0.72669]
[1749717718818,1.36402,2752.0,2751.7,4.489]
[1749717719027,1.36402,2752.0,2751.9,0.72663]
[1749717719327,1.36402,2752.0,2751.9,16.96]
[1749717719523,0.6374,2752.0,2751.9,17.68663]
[1749717719729,0.6374,2752.0,2751.9,16.96]
[1749717719929,1.36401,2752.0,2751.9,16.96]
[1749717720721,4.53997,2752.2,2752.0,0.72659]
[1749717720919,0.72658,2752.1,2752.0,0.72659]
[1749717721622,0.72661,2752.0,2751.9,16.96]
[1749717721822,3.8134,2752.2,2751.9,21.449]
[1749717722023,0.72661,2752.0,2751.9,21.449]
[1749717722526,3.8134,2752.2,2751.9,21.449]
[1749717722729,3.2078,2752.2,2751.9,21.449]
[1749717722931,3.93436,2752.2,2751.9,21.449]
[1749717723227,0.73198999,2752.3,2751.9,24.6568]
[1749717723420,0.00544999,2752.3,2752.2,0.72655]
[1749717723621,0.00544999,2752.3,2752.2,3.93435]
[1749717723819,3.2078,2752.6,2752.5,0.72648]
[1749717724028,3.2078,2752.6,2752.5,22.17448]
[1749717725026,3.93425,2752.6,2752.5,22.17448]
[1749717725228,3.93425,2752.6,2752.5,21.448]
[1749717725937,3.2078,2752.6,2752.5,22.17448]
[1749717726328,3.2078,2752.6,2752.5,21.448]
[1749717726632,0.29604999,2752.8,2752.7,0.72642]
[1749717727339,1e-08,2752.8,2752.7,1.36392]
[1749717728536,0.72640001,2752.8,2752.7,21.445]
[1749717729038,0.7264,2752.8,2752.7,21.445]
[1749717730034,0.7264,2752.8,2752.7,4.489]
[1749717730235,0.7264,2752.8,2752.7,21.445]
[1749717731242,0.72645,2752.6,2752.5,3.21324999]
[1749717731538,0.72645,2752.6,2752.5,21.44644999]
[1749717732442,3.2078,2752.7,2752.5,21.44644999]
[1749717733142,3.2078,2752.7,2752.5,22.17291999]
[1749717733345,0.72645,2752.6,2752.5,21.44644999]
[1749717734341,0.72645,2752.6,2752.5,21.44544999]
[1749717734536,0.72645,2752.6,2752.5,0.00544999]
[1749717734940,0.72645,2752.6,2752.5,21.44544999]
[1749717735342,0.72645,2752.6,2752.5,4.49144999]
[1749717735639,0.72645,2752.6,2752.5,21.44544999]
[1749717736040,3.2078,2752.7,2752.6,0.72645]
[1749717736241,0.72641,2752.8,2752.7,0.72642]
[1749717736442,0.72643,2752.7,2752.6,0.72644]
[1749717736843,0.72645,2752.6,2752.5,23.46941999]
[1749717737039,0.5966,2752.9,2752.6,0.72645]
[1749717737040,0.72644,2752.7,2752.6,0.72645]
[1749717737240,0.72642,2752.7,2752.6,0.72645]
[1749717737442,0.72645,2752.6,2752.5,23.46940999]
[1749717739544,0.72645,2752.6,2752.5,22.74294999]
[1749717739751,0.72645,2752.6,2752.5,0.00544999]
[1749717740046,0.72645,2752.6,2752.5,21.44444999]
[1749717741039,1.94055,2752.6,2752.5,4.49144999]
[1749717741244,1.94055,2752.6,2751.9,5.6056]
[1749717741245,0.72661,2752.0,2751.9,3.2078]
[1749717741447,0.72661,2752.0,2751.9,21.439]
[1749717741643,0.72669,2751.7,2751.6,25.1768]
[1749717741849,0.72669,2751.7,2751.6,46.6158]
[1749717742040,0.72677,2751.4,2751.3,1.8995]
[1749717742242,0.72676,2751.5,2751.3,24.06529]
[1749717742643,0.72674,2751.5,2751.4,0.72675]
[1749717744050,0.63714999,2751.6,2751.3,4.486]
[1749717744250,0.72674,2751.5,2751.4,16.954]
[1749717744549,0.72677,2751.4,2751.3,4.486]
[1749717744845,0.72677,2751.4,2751.3,21.44]
[1749717745749,0.72682,2751.2,2751.1,0.00544999]
[1749717745948,1.1952,2751.5,2751.1,21.44644999]
[1749717746249,0.72681,2751.3,2751.1,22.17327999]
[1749717746454,0.72681,2751.3,2751.2,16.955]
[1749717746752,0.72682,2751.2,2751.1,4.49244999]
[1749717747048,0.72682,2751.2,2751.1,21.44744999]
[1749717748145,3.2078,2751.4,2751.1,26.44744999]
[1749717748351,1.36387999,2751.6,2751.2,3.2078]
[1749717748652,1.36387999,2751.6,2751.5,0.72674]
[1749717748841,1.36387999,2751.6,2751.5,22.16874]
[1749717749245,0.00544999,2751.6,2751.5,22.16874]
[1749717750252,0.00544999,2751.6,2751.4,0.72675]
[1749717750449,0.72677,2751.4,2751.3,0.72679]
[1749717750648,0.72679,2751.3,2751.1,0.73228999]
[1749717750848,0.72682,2751.2,2751.1,4.49244999]
[1749717751044,1.33392,2751.2,2751.1,0.00544999]
[1749717751953,1.33392,2751.2,2751.1,16.96144999]
[1749717756855,0.6071,2751.2,2751.1,16.96144999]
[1749717757058,3.8079,2751.5,2751.4,0.72677]
[1749717757250,3.8079,2751.5,2751.3,4.488]
[1749717757450,0.6001,2751.5,2751.3,4.488]
[1749717757853,0.72677,2751.4,2751.3,4.488]
[1749717758049,3.8079,2751.5,2751.1,0.00544999]
[1749717758354,0.72682,2751.2,2751.1,21.45144999]
[1749717758955,0.00544999,2751.6,2751.1,23.26851999]
[1749717759151,0.00544999,2751.6,2751.5,0.72674]
[1749717759353,0.00544999,2751.6,2751.5,8.42054]
[1749717760653,0.73215999,2751.6,2751.5,7.6938]
[1749717762661,0.73215999,2751.6,2751.5,8.42054]
[1749717762862,0.00544999,2751.6,2751.5,8.42054]
[1749717763157,0.73215999,2751.6,2751.5,7.6938]
[1749717763558,0.00544999,2751.6,2751.3,4.486]
[1749717763859,1.35934,2751.5,2751.4,16.957]
[1749717765256,1.96914,2751.5,2751.4,16.957]
[1749717767552,0.72674,2751.5,2751.4,16.957]
[1749717767758,0.55054999,2751.6,2751.5,0.72674]
[1749717767954,0.55054999,2751.6,2751.4,22.16785]
[1749717768359,0.55054999,2751.6,2751.4,18.96005]
[1749717768562,0.72674,2751.5,2751.4,18.2333]
[1749717769056,0.72674,2751.5,2751.4,18.96007]
[1749717770153,0.55054999,2751.6,2751.5,0.72674]
[1749717770356,1.27725999,2751.6,2751.5,1.2115]
[1749717771060,1.27725999,2751.6,2751.5,1.93824]
[1749717771359,1.27725999,2751.6,2751.5,1.2115]
[1749717771761,1.27725999,2751.6,2751.5,1.93824]
[1749717772260,0.55054999,2751.6,2751.5,1.93824]
[1749717773053,1.27725999,2751.6,2751.5,16.955]
[1749717773253,0.72677,2751.4,2751.3,7.6938]
[1749717773460,0.55054999,2751.6,2751.3,24.6488]
[1749717773651,0.55054999,2751.6,2751.5,0.72674]
[1749717774060,0.55054999,2751.6,2751.5,1.95074]
[1749717774256,0.55054999,2751.6,2751.5,2.55494]
[1749717774458,3.2078,2752.3,2751.6,1.81676]
[1749717774654,0.6265,2752.4,2752.3,0.72653]
[1749717774964,0.7265,2752.4,2752.3,22.16753]
[1749717775657,3.8343,2752.7,2752.3,21.441]
[1749717776359,0.7265,2752.5,2752.4,0.7265]
[1749717776556,0.72645,2752.6,2752.4,0.7265]
[1749717776752,0.72645,2752.6,2752.4,1.94209]
[1749717776958,0.72648,2752.5,2752.4,1.94209]
[1749717777158,0.72648,2752.5,2752.4,1.2156]
[1749717777554,0.6265,2752.7,2752.4,1.2156]
[1749717777555,0.6265,2752.7,2752.5,0.72646]
[1749717778064,0.6265,2752.7,2752.4,1.94209]
[1749717778261,0.72645,2752.6,2752.4,1.94209]
[1749717778456,1.35294,2752.7,2752.5,0.72648]
[1749717778864,0.72645,2752.6,2752.4,1.94209]
[1749717779967,0.72648,2752.5,2752.4,1.2156]
[1749717780363,0.72647,2752.6,2752.4,1.9421]
[1749717782170,0.72648,2752.5,2752.4,1.9421]
[1749717782370,0.72647,2752.6,2752.4,1.2156]
[1749717782568,0.72648,2752.5,2752.4,1.94209]
[1749717782767,0.72648,2752.5,2752.4,1.2156]
[1749717783865,0.72648,2752.5,2752.4,1.9421]
[1749717784163,0.72648,2752.5,2752.4,1.2156]
[1749717784364,0.592,2752.9,2752.4,1.2156]
[1749717784567,1.31893,2753.1,2752.9,0.72635]
[1749717784763,3.2078,2753.3,2753.0,21.433]
[1749717784764,3.93409,2753.3,2753.0,21.433]
[1749717784965,0.72637,2752.9,2752.8,3.2078]
[1749717785166,0.72637,2752.9,2752.8,21.432]
[1749717785366,3.2078,2753.3,2752.8,21.432]
[1749717785869,3.2078,2753.3,2752.9,1.201]
[1749717786170,0.72631,2753.2,2753.1,0.72631]
[1749717786674,3.2078,2753.3,2752.9,1.201]
[1749717786969,0.72635,2753.0,2752.9,1.92736]
[1749717787166,0.72633,2753.1,2753.0,0.72633]
[1749717787573,0.72633,2753.1,2752.9,1.201]
[1749717787574,0.72631,2753.2,2753.1,0.72631]
[1749717787866,3.93408,2753.3,2753.2,0.7263]
[1749717788071,3.93408,2753.3,2753.2,22.1563]
[1749717788666,3.93408,2753.3,2753.2,21.43]
[1749717789666,0.72628,2753.3,2753.2,21.43]
[1749717790359,0.72628,2753.3,2753.2,22.1563]
[1749717790769,0.72628,2753.3,2753.2,21.43]
[1749717793067,3.8111,2753.4,2753.2,16.945]
[1749717793276,1.2181,2753.3,2753.0,16.944]
[1749717793473,3.93412,2753.1,2753.0,16.944]
[1749717794479,0.7264,2752.8,2752.7,0.00544999]
[1749717794687,0.7264,2752.8,2752.7,21.42944999]
[1749717794884,0.7264,2752.8,2752.7,22.15587999]
[1749717795081,3.2078,2753.1,2753.0,0.72635]
[1749717795287,0.7263,2753.2,2753.1,0.72631]
[1749717795585,0.6033,2753.4,2753.1,22.15031]
[1749717795784,0.7263,2753.2,2753.1,22.15031]
[1749717795978,0.7263,2753.2,2753.1,21.424]
[1749717797184,1.8457,2753.4,2753.2,0.72629]
[1749717797185,0.6033,2753.4,2753.2,0.72629]
[1749717797385,0.72628,2753.3,2753.2,0.72629]
[1749717798276,1.32956,2753.4,2753.2,0.7263]
[1749717798682,0.72627,2753.3,2753.2,0.7263]
[1749717799086,1.32956,2753.4,2753.2,0.7263]
[1749717799381,1.32956,2753.4,2753.1,22.1503]
[1749717799580,0.72628,2753.3,2753.1,22.1503]
[1749717799981,0.6033,2753.4,2753.1,22.15032]
[1749717800181,0.7263,2753.2,2753.1,21.424]
[1749717800688,0.72635,2753.0,2752.8,5.76148]
[1749717800890,0.72635,2753.0,2752.9,21.422]
[1749717801085,0.72634,2753.1,2753.0,0.72634]
[1749717802288,0.72635,2753.0,2752.9,22.14836]
[1749717803885,0.72631,2753.2,2753.1,0.7263]
[1749717804085,0.6033,2753.4,2752.9,21.422]
[1749717804086,0.72634,2753.1,2753.0,0.72634]
[1749717804981,0.72634,2753.1,2753.0,22.14734]
[1749717805790,0.72634,2753.1,2753.0,22.14634]
[1749717807286,0.72634,2753.1,2753.0,4.481]
[1749717807489,0.72634,2753.1,2753.0,21.42]
[1749717808394,0.72634,2753.1,2752.7,0.00544999]
[1749717808395,5.02363,2753.1,2752.7,0.00544999]
[1749717808600,0.72637,2752.9,2752.8,21.419]
[1749717808986,1.98507,2752.9,2752.8,21.419]
[1749717812985,1.2587,2752.9,2752.8,21.419]
[1749717813190,3.93413,2753.1,2752.9,0.72637]
[1749717813395,0.72635,2753.0,2752.8,22.7068]
[1749717813594,0.72635,2753.0,2752.9,0.72637]
[1749717813782,3.2078,2753.1,2752.8,23.43318]
[1749717814194,0.72636,2753.0,2752.8,23.43318]
[1749717814395,0.72637,2752.9,2752.8,23.43318]
[1749717815097,0.72637,2752.9,2752.8,22.7068]
[1749717815396,0.7264,2752.8,2752.7,0.73187999]
[1749717815597,0.7264,2752.8,2752.7,22.14987999]
[1749717817094,0.7264,2752.8,2752.7,0.73187999]
[1749717817295,0.7264,2752.8,2752.7,22.14987999]
[1749717817498,0.7264,2752.9,2752.8,0.72639]
[1749717817797,0.7264,2752.8,2752.7,22.14984999]
[1749717817996,0.72639,2752.9,2752.8,0.72638]
[1749717818497,1.35857,2753.0,2752.9,0.72638]
[1749717820998,0.72631,2753.2,2753.1,0.7263]
[1749717821200,0.82621,2753.2,2753.1,5.2023]
[1749717821896,0.0999,2753.2,2753.1,5.2023]
[1749717822096,0.0999,2753.2,2753.1,6.4553]
[1749717822999,0.8262,2753.2,2753.1,6.4553]
[1749717823599,0.0999,2753.2,2753.1,6.4553]
[1749717824699,0.8262,2753.2,2753.1,6.4553]
[1749717824895,0.0999,2753.2,2753.1,6.4553]
[1749717826397,3.93396,2753.8,2753.7,0.72617]
[1749717826602,3.93396,2753.8,2753.7,16.933]
[1749717826801,3.2078,2753.8,2753.7,17.65917]
[1749717827300,3.93394,2753.8,2753.7,16.933]
[1749717828202,3.93394,2753.8,2753.7,17.65917]
[1749717828398,0.72614,2753.8,2753.7,16.933]
[1749717829004,0.72614,2753.8,2753.7,17.65917]
[1749717829404,0.72614,2753.8,2753.7,16.933]
[1749717829605,0.72617,2753.7,2753.6,4.476]
[1749717829797,0.72617,2753.7,2753.6,22.13419]
[1749717830005,0.72615,2753.8,2753.7,0.72615]
[1749717830406,1.32783,2753.9,2753.8,0.72614]
[1749717830902,0.72615,2753.8,2753.7,0.72615]
[1749717831309,0.72617,2753.7,2753.6,23.36858]
[1749717831608,0.72617,2753.7,2753.6,22.6424]
[1749717831801,0.72617,2753.7,2753.6,21.408]
[1749717832001,0.72617,2753.7,2753.6,22.13419]
[1749717832402,0.72615,2753.8,2753.7,0.72615]
[1749717832904,0.72612,2753.9,2753.8,0.72611]
[1749717833302,0.72615,2753.8,2753.7,0.72615]
[1749717834509,0.67615,2753.8,2753.7,0.72615]
[1749717835804,0.67615,2753.8,2753.6,23.2158]
[1749717835805,3.2078,2754.1,2754.0,0.72609]
[1749717836108,3.2078,2754.1,2754.0,22.12909]
[1749717837006,3.2078,2754.1,2754.0,21.402]
[1749717837007,3.93386,2754.1,2754.0,21.402]
[1749717837407,0.72606,2754.1,2754.0,21.402]
[1749717837607,0.72606,2754.1,2754.0,22.12809]
[1749717838910,1.98383,2754.3,2754.2,0.72603]
[1749717839504,0.72606,2754.1,2754.0,22.12807]
[1749717839908,0.72605,2754.2,2754.1,0.72606]
[1749717840109,1.98382,2754.3,2754.2,0.72603]
[1749717840512,0.72605,2754.2,2754.1,0.72605]
[1749717840812,1.2578,2754.3,2754.2,0.72603]
[1749717841813,0.72604,2754.2,2754.1,0.72604]
[1749717842611,1.98383,2754.3,2754.2,0.72603]
[1749717842801,1.2578,2754.3,2754.2,0.72603]
[1749717843009,1.98381,2754.3,2754.2,0.72603]
[1749717843204,4.06792,2754.4,2754.3,0.72601]
[1749717843406,0.13412,2754.4,2754.3,3.93381]
[1749717843916,1e-08,2754.4,2754.3,44.73381]
[1749717844211,1e-08,2754.4,2754.3,45.99541]
[1749717847111,1e-08,2754.4,2754.3,50.99541]
[1749717847816,1e-08,2754.4,2754.3,67.91441]
[1749717848014,3.93354,2755.3,2755.2,0.72577]
[1749717848207,3.93354,2755.3,2755.2,21.392]
[1749717848611,3.93354,2755.3,2755.0,0.00544999]
[1749717848612,0.7258,2755.1,2755.0,0.00544999]
[1749717848815,0.7258,2755.1,2755.0,16.92244999]
[1749717849013,0.7258,2755.1,2755.0,0.00544999]
[1749717849220,5.0,2755.1,2754.4,4.474]
[1749717849418,0.72596,2754.5,2754.4,4.474]
[1749717849608,0.72601,2754.3,2754.2,3.2078]
[1749717849809,3.2078,2754.5,2754.4,0.72598]
[1749717850018,1.90422,2754.7,2754.4,0.72598]
[1749717850210,0.72598,2754.4,2754.3,0.00544999]
[1749717850416,0.72598,2754.4,2754.3,21.39644999]
[1749717852421,3.93378,2754.4,2754.3,4.47944999]
[1749717853025,3.93378,2754.4,2754.3,21.39544999]
[1749717853323,5.16308,2754.4,2754.3,21.39544999]
[1749717856426,1.95528,2754.4,2754.3,21.39544999]
[1749717861525,5.16308,2754.4,2754.3,0.00544999]
[1749717861729,5.16308,2754.4,2754.3,16.91944999]
[1749717866041,5.16308,2754.4,2754.3,0.00544999]
[1749717866338,5.16308,2754.4,2754.3,16.91844999]
[1749717874639,5.16308,2754.4,2754.3,0.00544999]
[1749717874843,0.72622,2753.5,2753.4,0.6167]
[1749717875043,0.72621,2753.6,2753.4,21.9947]
[1749717875243,0.72621,2753.6,2753.4,23.2324]
[1749717875543,1.81524,2754.0,2753.4,23.2324]
[1749717875544,3.2078,2754.2,2753.4,23.2324]
[1749717875738,0.72609,2754.0,2753.9,0.72611]
[1749717875943,0.72606,2754.1,2754.0,0.72609]
[1749717876242,0.72606,2754.2,2754.0,0.72609]
[1749717876444,0.6299,2754.3,2754.1,0.72606]
[1749717876445,1.35593,2754.3,2754.1,0.72606]
[1749717876638,0.72603,2754.2,2754.1,0.72606]
[1749717876832,3.93377,2754.5,2754.0,1.8391]
[1749717877033,3.8226,2754.5,2754.1,0.72604]
[1749717877238,0.72601,2754.3,2754.2,1.2229]
[1749717879044,0.72606,2754.1,2754.0,0.6014]
[1749717879244,0.72614,2753.8,2753.7,0.6027]
[1749717879542,0.72614,2753.8,2753.7,23.2016]
[1749717880536,0.72614,2753.8,2753.7,6.2936]
[1749717880741,0.72614,2753.8,2753.7,23.2016]
[1749717881345,0.72614,2753.8,2753.7,6.2936]
[1749717881645,0.72617,2753.7,2753.5,5.19964999]
[1749717881942,0.72615,2753.8,2753.6,18.23519]
[1749717882145,0.72615,2753.8,2753.6,1.32719]
[1749717882444,0.72612,2753.9,2753.7,17.63315]
[1749717882738,3.2078,2754.1,2754.0,0.72609]
[1749717882942,3.2078,2754.5,2754.1,0.72604]
[1749717883143,3.2078,2754.5,2754.2,18.1603]
[1749717883144,0.72602,2754.3,2754.2,18.1603]
[1749717888847,3.2078,2754.5,2754.2,18.88632]
[1749717889044,3.2078,2754.5,2754.3,1.1807]
[1749717889245,0.726,2754.4,2754.3,1.1807]
[1749717889641,0.726,2754.4,2754.3,18.0847]
[1749717893143,0.72604,2754.2,2754.1,1.231]
[1749717893343,0.72604,2754.2,2754.1,19.4037]
[1749717893641,0.72602,2754.3,2754.1,20.12974]
[1749717894047,0.72602,2754.3,2754.2,1.2697]
[1749717897049,0.72604,2754.2,2754.1,18.134]
[1749717897954,0.72604,2754.2,2754.1,18.86006]
[1749717898450,0.72604,2754.2,2754.1,18.134]
[1749717898953,0.72604,2754.2,2754.1,17.531]
[1749717899744,0.72606,2754.1,2754.0,4.461]
[1749717900047,3.2078,2754.2,2753.6,3.8456]
[1749717900244,0.72616,2753.8,2753.7,4.461]
[1749717900646,0.72616,2753.8,2753.7,21.361]
[1749717900852,0.72616,2753.8,2753.7,4.461]
[1749717901047,3.2078,2753.9,2753.5,16.90444999]
[1749717901048,0.7262,2753.6,2753.5,16.90444999]
[1749717901645,1.3266,2753.6,2753.5,16.90444999]
[1749717902257,1.9135,2753.6,2753.5,16.90444999]
[1749717902855,1.9135,2753.6,2753.5,16.90544999]
[1749717903662,5.1213,2753.6,2753.5,0.00544999]
[1749717903861,5.1213,2753.6,2753.2,4.462]
[1749717903862,0.72627,2753.3,2753.2,4.462]
[1749717904061,0.7263,2753.2,2753.1,16.899]
[1749717904359,4.3951,2753.6,2753.1,16.899]
[1749717904557,0.6004,2753.6,2753.3,3.2078]
[1749717904762,0.6004,2753.6,2753.4,4.462]
[1749717905059,0.72623,2753.5,2753.4,4.462]
[1749717906258,0.72627,2753.3,2753.2,0.00544999]
[1749717906457,3.93407,2753.3,2753.2,0.00544999]
[1749717907057,5.19927,2753.3,2753.2,0.00544999]
[1749717907666,3.2078,2753.3,2753.2,0.00544999]
[1749717908265,3.93407,2753.3,2753.2,0.00544999]
[1749717908664,3.2078,2753.3,2753.2,0.73174999]
[1749717908861,0.00544999,2753.7,2753.6,0.7262]
[1749717909064,0.00544999,2753.7,2753.6,22.0892]
[1749717914064,0.00544999,2753.7,2753.6,5.1882]
[1749717914265,0.73161999,2753.7,2753.6,21.359]
[1749717914869,0.00544999,2753.7,2753.6,22.0852]
[1749717915063,0.00544999,2753.7,2753.6,23.3676]
[1749717920575,0.73161999,2753.7,2753.6,21.359]
[1749717920774,0.7262,2753.6,2753.5,4.455]
[1749717920968,0.6301,2753.6,2753.2,0.00544999]
[1749717921271,0.72625,2753.4,2753.3,22.07527]
[1749717921475,0.72625,2753.4,2753.3,21.349]
[1749717921772,0.72627,2753.3,2753.2,0.73172999]
[1749717921975,0.72627,2753.3,2753.2,21.35444999]
[1749717922378,0.72627,2753.3,2753.2,21.35344999]
[1749717922976,0.72627,2753.3,2753.2,4.46044999]
[1749717923276,0.72627,2753.3,2753.2,21.35444999]
[1749717925278,0.67627,2753.3,2753.2,21.35344999]
[1749717925476,3.88407,2753.3,2753.2,4.46044999]
[1749717926168,3.88407,2753.3,2753.2,0.00544999]
[1749717930175,0.72641,2752.8,2752.7,26.411]
[1749717930380,0.72641,2752.8,2752.7,4.456]
[1749717930683,0.72653,2752.4,2752.2,3.93435]
[1749717930983,0.72653,2752.4,2752.3,21.349]
[1749717931177,0.72653,2752.4,2752.3,4.456]
[1749717931374,0.72653,2752.4,2752.3,21.349]
[1749717932078,0.72653,2752.4,2752.3,4.456]
[1749717932285,0.72653,2752.4,2752.3,21.35]
[1749717932586,0.72653,2752.4,2752.3,4.456]
[1749717932882,0.72656,2752.2,2752.1,0.00544999]
[1749717933079,3.93436,2752.2,2752.1,0.00544999]
[1749717933484,5.15806,2752.2,2752.1,0.00544999]
[1749717933680,10.15806,2752.2,2752.1,0.00544999]
[1749717933879,0.7267,2751.7,2751.6,7.6638]
[1749717934176,0.72676,2751.5,2751.4,16.893]
[1749717934392,3.2078,2751.8,2751.4,16.893]
[1749717934686,3.2078,2751.8,2751.7,0.436]
[1749717934887,3.2078,2751.8,2751.7,4.893]
[1749717935179,3.2078,2751.8,2751.7,4.457]
[1749717935590,3.2078,2751.8,2751.5,0.00544999]
[1749717935781,0.72672,2751.6,2751.5,0.00544999]
[1749717936084,0.72672,2751.6,2751.5,21.35744999]
[1749717937679,0.72672,2751.6,2751.5,4.46244999]
[1749717938082,1.91482,2751.6,2751.5,4.46244999]
[1749717939080,1.91482,2751.6,2751.5,0.00544999]
[1749717940788,0.72672,2751.6,2751.5,0.00544999]
[1749717940988,1.2225,2751.7,2751.5,0.00544999]
[1749717941188,0.72672,2751.6,2751.5,0.00544999]
[1749717943990,1.98672,2751.6,2751.5,0.00544999]
[1749717948393,0.72688,2751.0,2750.9,25.1718]
[1749717948595,0.72688,2751.0,2750.9,29.6238]
[1749717948798,0.72688,2751.0,2750.9,46.5208]
[1749717949393,0.72688,2751.0,2750.9,29.6238]
[1749717949590,0.72688,2751.0,2750.9,46.5198]
[1749717951291,0.72688,2751.0,2750.9,29.6238]
[1749717951596,0.72688,2751.0,2750.9,46.5218]
[1749717951797,3.2078,2751.4,2750.9,46.5218]
[1749717951997,3.2078,2751.4,2751.0,1.2995]
[1749717952496,0.72682,2751.3,2751.1,0.72686]
[1749717952891,0.72683,2751.2,2751.0,2.02637]
[1749717953098,0.72682,2751.3,2751.1,0.72684]
[1749717953394,0.7268,2751.3,2751.2,0.72683]
[1749717953988,0.72684,2751.2,2751.1,0.72684]
[1749717954189,0.72682,2751.3,2751.2,0.72683]
[1749717954386,0.72683,2751.2,2751.1,0.72684]
[1749717955897,0.72682,2751.3,2751.2,0.72681]
[1749717956097,0.72682,2751.3,2751.2,16.896]
[1749717956300,0.72682,2751.3,2751.2,17.62283]
[1749717957091,0.72682,2751.3,2751.2,16.896]
[1749717958501,0.72682,2751.3,2751.2,17.62283]
[1749717958701,0.7268,2751.3,2751.2,17.62282]
[1749717958997,0.7268,2751.3,2751.2,17.62281]
[1749717959199,3.2078,2751.4,2751.2,16.896]
[1749717959398,0.7268,2751.3,2751.2,16.896]
[1749717960211,2.18044155,2751.3,2751.2,16.896]
[1749717960807,2.18044155,2751.3,2751.2,17.62283]
[1749717961014,1.45364155,2751.3,2751.2,17.62283]
[1749717961209,2.18044155,2751.3,2751.2,16.896]
[1749717961407,0.72684,2751.2,2751.0,2.02636]
[1749717961609,0.72684,2751.2,2751.1,16.894]
[1749717961804,0.72683,2751.2,2751.1,16.894]
[1749717962212,2.18049033,2751.2,2751.1,16.894]
[1749717963315,2.18049033,2751.2,2751.1,17.62086]
[1749717963615,2.18049033,2751.2,2751.1,16.894]
[1749717966313,1.45366033,2751.2,2751.1,18.91556]
[1749717966912,2.18049033,2751.2,2751.1,4.453]
[1749717967113,2.18049033,2751.2,2751.1,21.345]
[1749717968212,0.72688,2751.0,2750.9,25.1718]
[1749717968406,2.18054033,2751.0,2750.9,46.5168]
[1749717969510,2.18054033,2751.0,2750.9,25.1718]
[1749717969816,2.18054033,2751.0,2750.9,43.308]
[1749717970215,1.45366033,2751.0,2750.9,43.308]
[1749717970415,2.18054033,2751.0,2750.9,43.308]
[1749717970617,2.18054033,2751.0,2750.9,21.964]
[1749717970813,2.18054033,2751.0,2750.9,43.308]
[1749717972621,2.18054033,2751.0,2750.9,21.344]
[1749717973825,2.18054033,2751.0,2750.9,21.343]
[1749717974124,2.81794033,2751.0,2750.9,21.343]
[1749717974619,0.72693,2750.8,2750.7,0.0036333]
[1749717974817,2.18059033,2750.8,2750.7,21.3396333]
[1749717975017,1.45366033,2750.8,2750.7,21.3396333]
[1749717975219,1.45366033,2750.8,2750.7,25.2743933]